[Event "Klubbmästerskap 2025 Torsdagar"]
[Site "Linköping, Sweden"]
[Date "2025.04.10"]
[Round "9.8"]
[White "Karlsson, Henrik 1974"]
[Black "Davidsson, Asker"]
[Result "0-1"]
[TimeControl "90 min + 30 sec/move"]
[WhiteElo "1804"]
[BlackElo "1823"]

1. e4 {[%clk 01:30:50]} {[%emt 00:00:08]} c5 {[%clk 01:30:40]} {[%emt
00:00:21]} 2. Nf3 {[%clk 01:31:04]} {[%emt 00:00:16]} Nc6 {[%clk 01:30:58]}
{[%emt 00:00:12]} 3. d4 {[%clk 01:31:28]} {[%emt 00:00:06]} cxd4 {[%clk
01:31:22]} {[%emt 00:00:07]} 4. Nxd4 {[%clk 01:31:52]} {[%emt 00:00:06]} g6
{[%clk 01:31:29]} {[%emt 00:00:23]} 5. Nc3 {[%clk 01:32:10]} {[%emt 00:00:12]}
Bg7 {[%clk 01:31:51]} {[%emt 00:00:08]} 6. Be3 {[%clk 01:32:29]} {[%emt
00:00:11]} Nf6 {[%clk 01:32:14]} {[%emt 00:00:08]} 7. f3 {[%clk 01:32:50]}
{[%emt 00:00:09]} O-O {[%clk 01:31:56]} {[%emt 00:00:49]} 8. Qd2 {[%clk
01:33:13]} {[%emt 00:00:07]} d5 {[%clk 01:32:09]} {[%emt 00:00:16]} 9. Nxc6
{[%clk 01:32:17]} {[%emt 00:01:26]} bxc6 {[%clk 01:32:37]} {[%emt 00:00:03]} 10.
O-O-O {[%clk 01:32:30]} {[%emt 00:00:17]} Qa5 {[%clk 01:29:03]} {[%emt
00:04:03]} 11. a3 {[%clk 01:30:41]} {[%emt 00:02:19]} Be6 {[%clk 01:23:44]}
{[%emt 00:05:48]} 12. Bh6 {[%clk 01:25:36]} {[%emt 00:05:35]} Rab8 {[%clk
01:22:12]} {[%emt 00:02:03]} 13. Bxg7 {[%clk 01:22:57]} {[%emt 00:03:09]} Kxg7
{[%clk 01:21:54]} {[%emt 00:00:48]} 14. exd5 {[%clk 01:17:30]} {[%emt
00:05:57]} cxd5 {[%clk 01:20:18]} {[%emt 00:02:06]} 15. Qd4 {[%clk 01:15:45]}
{[%emt 00:02:14]} Qb6 {[%clk 01:13:33]} {[%emt 00:07:15]} 16. Qxb6 {[%clk
01:09:30]} {[%emt 00:06:46]} Rxb6 {[%clk 01:14:00]} {[%emt 00:00:02]} 17. Rd4
{[%clk 01:09:49]} {[%emt 00:00:11]} Rfb8 {[%clk 01:11:59]} {[%emt 00:02:31]} 18.
b4 {[%clk 01:10:11]} {[%emt 00:00:09]} Rc6 {[%clk 01:03:33]} {[%emt 00:08:52]}
19. Na4 {[%clk 01:00:58]} {[%emt 00:09:46]} Bf5 {[%clk 01:01:55]} {[%emt
00:02:08]} 20. Nc5 {[%clk 00:58:14]} {[%emt 00:03:14]} a5 {[%clk 01:00:05]}
{[%emt 00:02:20]} 21. c3 {[%clk 00:57:51]} {[%emt 00:00:53]} axb4 {[%clk
00:55:56]} {[%emt 00:04:39]} 22. axb4 {[%clk 00:58:12]} {[%emt 00:00:09]} e5
{[%clk 00:45:44]} {[%emt 00:10:42]} 23. Rd1 {[%clk 00:58:35]} {[%emt 00:00:07]}
d4 {[%clk 00:45:01]} {[%emt 00:01:13]} 24. g4 {[%clk 00:57:51]} {[%emt
00:01:14]} Bc8 {[%clk 00:39:33]} {[%emt 00:05:56]} 25. Kd2 {[%clk 00:51:44]}
{[%emt 00:06:39]} dxc3+ {[%clk 00:38:56]} {[%emt 00:01:07]} 26. Kxc3 {[%clk
00:51:47]} {[%emt 00:00:26]} e4 {[%clk 00:34:38]} {[%emt 00:04:49]} 27. Rd8
{[%clk 00:48:14]} {[%emt 00:04:03]} Nd7 {[%clk 00:16:37]} {[%emt 00:18:31]} 28.
fxe4 {[%clk 00:47:56]} {[%emt 00:00:48]} Nxc5 {[%clk 00:14:30]} {[%emt
00:02:37]} 29. bxc5 {[%clk 00:48:15]} {[%emt 00:00:12]} Rxc5+ {[%clk 00:14:47]}
{[%emt 00:00:12]} 30. Kd4 {[%clk 00:48:22]} {[%emt 00:00:23]} Rc1 {[%clk
00:13:27]} {[%emt 00:01:50]} 31. Bg2 {[%clk 00:47:58]} {[%emt 00:00:54]} Rb4+
{[%clk 00:12:20]} {[%emt 00:01:35]} 32. Ke3 {[%clk 00:46:10]} {[%emt 00:02:20]}
Rxh1 {[%clk 00:10:54]} {[%emt 00:01:56]} 33. Bxh1 {[%clk 00:46:35]} {[%emt
00:00:05]} Bxg4 {[%clk 00:11:11]} {[%emt 00:00:12]} 34. Rd2 {[%clk 00:46:13]}
{[%emt 00:00:53]} h5 {[%clk 00:10:31]} {[%emt 00:01:10]} 35. Bg2 {[%clk
00:45:19]} {[%emt 00:01:23]} Kf6 {[%clk 00:08:13]} {[%emt 00:02:48]} 36. h4
{[%clk 00:40:42]} {[%emt 00:05:07]} Be6 {[%clk 00:07:03]} {[%emt 00:01:41]} 37.
Rf2+ {[%clk 00:38:31]} {[%emt 00:02:40]} Ke5 {[%clk 00:07:01]} {[%emt
00:00:28]} 38. Rf1 {[%clk 00:35:33]} {[%emt 00:03:32]} Rb3+ {[%clk 00:06:15]}
{[%emt 00:01:15]} 39. Kf2 {[%clk 00:33:41]} {[%emt 00:02:23]} Bh3 {[%clk
00:04:46]} {[%emt 00:01:59]} 40. Bxh3 {[%clk 00:30:09]} {[%emt 00:04:03]} Rxh3
{[%clk 00:05:13]} {[%emt 00:00:02]} 41. Kg2 {[%clk 00:30:33]} {[%emt 00:00:06]}
Rxh4 {[%clk 00:04:58]} {[%emt 00:00:45]} 42. Rxf7 {[%clk 00:30:57]} {[%emt
00:00:06]} Rxe4 {[%clk 00:04:06]} {[%emt 00:01:22]} 43. Kf3 {[%clk 00:31:07]}
{[%emt 00:00:20]} Rb4 {[%clk 00:03:25]} {[%emt 00:01:08]} 44. Kg3 {[%clk
00:31:02]} {[%emt 00:00:38]} Ke6 {[%clk 00:03:17]} {[%emt 00:00:35]} 45. Rf8
{[%clk 00:31:07]} {[%emt 00:00:28]} Rb7 {[%clk 00:03:11]} {[%emt 00:00:34]} 46.
Kh4 {[%clk 00:30:12]} {[%emt 00:01:28]} Rf7 {[%clk 00:03:23]} {[%emt 00:00:16]}
47. Rb8 {[%clk 00:30:29]} {[%emt 00:00:15]} Kf6 {[%clk 00:03:40]} {[%emt
00:00:13]} 48. Rb6+ {[%clk 00:28:36]} {[%emt 00:02:25]} Kg7 {[%clk 00:04:03]}
{[%emt 00:00:07]} 49. Rb4 {[%clk 00:27:18]} {[%emt 00:01:47]} Kh6 {[%clk
00:03:53]} {[%emt 00:00:39]} 50. Kg3 {[%clk 00:27:36]} {[%emt 00:00:13]} Rf6
{[%clk 00:03:43]} {[%emt 00:00:40]} 51. Kh4 {[%clk 00:27:10]} {[%emt 00:00:56]}
g5+ {[%clk 00:03:43]} {[%emt 00:00:29]} 52. Kg3 {[%clk 00:27:26]} {[%emt
00:00:14]} Kg6 {[%clk 00:02:14]} {[%emt 00:01:59]} 53. Rb8 {[%clk 00:27:47]}
{[%emt 00:00:09]} h4+ {[%clk 00:02:24]} {[%emt 00:00:20]} 54. Kg4 {[%clk
00:26:45]} {[%emt 00:01:32]} Rf4+ {[%clk 00:02:24]} {[%emt 00:00:29]} 55. Kh3
{[%clk 00:27:10]} {[%emt 00:00:05]} Kf5 {[%clk 00:01:44]} {[%emt 00:01:10]} 56.
Rb5+ {[%clk 00:26:44]} {[%emt 00:00:56]} Kg6 {[%clk 00:01:55]} {[%emt
00:00:19]} 57. Rb8 {[%clk 00:27:07]} {[%emt 00:00:07]} Rc4 {[%clk 00:01:42]}
{[%emt 00:00:42]} 58. Rg8+ {[%clk 00:27:16]} {[%emt 00:00:21]} Kh6 {[%clk
00:01:04]} {[%emt 00:01:08]} 59. Rh8+ {[%clk 00:26:58]} {[%emt 00:00:47]} Kg7
{[%clk 00:01:22]} {[%emt 00:00:12]} 60. Rd8 {[%clk 00:27:22]} {[%emt 00:00:07]}
Rc3+ {[%clk 00:01:42]} {[%emt 00:00:10]} 61. Kg4 {[%clk 00:25:26]} {[%emt
00:02:26]} Rg3+ {[%clk 00:02:06]} {[%emt 00:00:06]} 62. Kf5 {[%clk 00:25:49]}
{[%emt 00:00:07]} h3 {[%clk 00:01:32]} {[%emt 00:01:04]} 63. Rd7+ {[%clk
00:26:08]} {[%emt 00:00:11]} Kh6 {[%clk 00:00:37]} {[%emt 00:01:25]} 64. Rd6+
{[%clk 00:26:32]} {[%emt 00:00:05]} Kh5 {[%clk 00:00:52]} {[%emt 00:00:14]} 65.
Rd8 {[%clk 00:26:52]} {[%emt 00:00:12]} Rf3+ {[%clk 00:01:08]} {[%emt
00:00:14]} 66. Ke4 {[%clk 00:27:06]} {[%emt 00:00:16]} Rf4+ {[%clk 00:01:32]}
{[%emt 00:00:05]} 67. Ke3 {[%clk 00:27:07]} {[%emt 00:00:29]} Kg4 {[%clk
00:02:00]} {[%emt 00:00:02]} 68. Rh8 {[%clk 00:26:54]} {[%emt 00:00:42]} Kg3
{[%clk 00:02:20]} {[%emt 00:00:10]} 69. Rh5 {[%clk 00:27:04]} {[%emt 00:00:21]}
g4 {[%clk 00:02:43]} {[%emt 00:00:07]} 70. Kd4 {[%emt 00:01:01]} 0-1